bitfinex/quotes_BTCUSD_20220218
["timestamp","ask_amount","ask_price","bid_price","bid_amount"]
[1645191843617,0.2710994,40445.0,40444.0,0.35201958]
[1645191843618,0.00825649,40445.0,40444.0,0.35201958]
[1645191843915,0.00825649,40445.0,40444.0,0.05201956]
[1645191843916,0.21855175,40445.0,40444.0,0.05201956]
[1645191844118,0.21855175,40445.0,40444.0,0.05201954]
[1645191844514,0.21855175,40445.0,40444.0,0.05301954]
[1645191845715,0.21855175,40445.0,40444.0,0.05201954]
[1645191846115,0.00825649,40445.0,40444.0,0.05201954]
[1645191846315,0.21855175,40445.0,40444.0,0.05201954]
[1645191846962,0.21855175,40445.0,40443.0,0.00474489]
[1645191847267,0.21855175,40445.0,40444.0,0.0497]
[1645191848965,0.21856428,40445.0,40443.0,0.00474489]
[1645191849164,0.21030263,40444.0,40443.0,0.00474489]
[1645191849364,0.27144911,40445.0,40443.0,0.00474489]
[1645191849867,0.26284291,40444.0,40443.0,0.00474489]
[1645191850066,0.27144911,40445.0,40443.0,0.00474489]
[1645191850515,0.27144911,40445.0,40443.0,0.06657289]
[1645191850910,0.26627202,40445.0,40443.0,0.07077797]
[1645191851210,0.00342911,40445.0,40444.0,0.00216551]
[1645191851411,0.26597589,40445.0,40444.0,0.00216551]
[1645191852010,0.26550089,40445.0,40444.0,0.00216551]
[1645191852213,0.0026044,40445.0,40444.0,0.00216551]
[1645191855664,0.26553465,40445.0,40444.0,0.00216551]
[1645191856065,0.26553465,40445.0,40443.0,0.07294248]
[1645191856266,0.26588436,40445.0,40443.0,0.07294248]
[1645191856664,0.26293025,40444.0,40443.0,0.07294248]
[1645191857365,0.00342911,40445.0,40443.0,0.07294248]
[1645191857366,0.26635936,40445.0,40443.0,0.07294248]
[1645191858016,0.26588436,40445.0,40443.0,0.07294248]
[1645191858209,0.26588436,40445.0,40443.0,0.01111548]
[1645191859710,0.25588436,40445.0,40443.0,0.01111548]
[1645191860118,0.06364571,40446.0,40443.0,0.01111548]
[1645191860313,0.06364571,40446.0,40444.0,0.061826]
[1645191860913,0.00133097,40445.0,40444.0,0.061826]
[1645191861116,0.00180597,40445.0,40444.0,0.061826]
[1645191866211,0.001575,40446.0,40444.0,0.06402716]
[1645191866610,0.063399,40446.0,40444.0,0.06402716]
[1645191867612,0.063399,40446.0,40444.0,0.06502716]
[1645191867816,0.00196479,40447.0,40444.0,0.06502716]
[1645191868016,0.2103579,40445.0,40444.0,0.06502716]
[1645191868315,0.00171021,40447.0,40444.0,0.06502716]
[1645191868511,0.21035663,40445.0,40444.0,0.06502716]
[1645191869114,0.061824,40446.0,40444.0,0.06502716]
[1645191869365,0.20987871,40445.0,40444.0,0.06502716]
[1645191869566,0.20987871,40445.0,40444.0,0.06402716]
[1645191870464,0.20987871,40445.0,40444.0,0.06502716]
[1645191870865,0.20987871,40445.0,40444.0,0.062826]
[1645191870866,0.21512252,40445.0,40444.0,0.062826]
[1645191871265,0.21607252,40445.0,40444.0,0.062826]
[1645191871468,0.00619381,40445.0,40444.0,0.062826]
[1645191871666,0.00619381,40445.0,40444.0,0.061826]
[1645191872868,0.00619381,40445.0,40444.0,0.0613864]
[1645191874417,0.00016833,40445.0,40444.0,0.0613864]
[1645191874621,0.00016833,40445.0,40444.0,0.4120864]
[1645191874819,0.26414348,40450.0,40447.0,0.061805]
[1645191874820,0.26297283,40450.0,40447.0,0.061805]
[1645191875022,0.00079712,40454.0,40453.0,0.15]
[1645191875223,0.00079712,40454.0,40453.0,1.10942477]
[1645191875421,0.02432413,40461.0,40454.0,1.2]
[1645191875623,0.02432413,40461.0,40457.0,0.6217]
[1645191875624,0.01432413,40461.0,40457.0,0.6217]
[1645191875826,0.01002413,40461.0,40459.0,0.623566]
[1645191876021,0.01002413,40461.0,40460.0,0.37707062]
[1645191876220,0.0023986,40462.0,40460.0,0.0497]
[1645191876420,0.0023986,40462.0,40461.0,0.3]
[1645191876623,0.0023986,40462.0,40461.0,0.7714]
[1645191876869,0.0023986,40462.0,40461.0,0.60979172]
[1645191877467,0.00255229,40462.0,40461.0,0.60979172]
[1645191878470,0.00255229,40462.0,40461.0,0.61079172]
[1645191878668,0.0023986,40462.0,40461.0,0.61079172]
[1645191879869,0.0023986,40462.0,40461.0,0.5497]
[1645191881116,0.0023986,40462.0,40461.0,0.05190814]
[1645191881713,0.0023986,40462.0,40461.0,0.00220814]
[1645191885562,0.0605998,40463.0,40461.0,0.00220814]
[1645191885762,0.0013972,40463.0,40461.0,0.00220814]
[1645191885962,0.0013972,40463.0,40461.0,0.00464171]
[1645191886162,0.0013972,40463.0,40461.0,0.00243357]
[1645191886964,0.0013972,40463.0,40461.0,0.06422557]
[1645191887363,0.0013972,40463.0,40461.0,0.00243357]
[1645191887864,0.0013972,40463.0,40457.0,0.1257516]
[1645191888115,0.0013972,40463.0,40458.0,0.5]
[1645191888516,0.061801,40461.0,40458.0,0.5]
[1645191890013,0.061801,40461.0,40458.0,0.561797]
[1645191890615,0.061801,40461.0,40458.0,0.562797]
[1645191890814,0.06214896,40461.0,40458.0,0.562797]
[1645191891215,0.06214896,40461.0,40458.0,0.501]
[1645191891866,0.06214896,40461.0,40458.0,0.5]
[1645191892066,0.05714896,40461.0,40458.0,0.5]
[1645191892666,0.05714896,40461.0,40458.0,0.501]
[1645191893567,0.05714896,40461.0,40459.0,0.26519227]
[1645191893768,0.05714896,40461.0,40458.0,0.5]
[1645191893968,0.05714896,40461.0,40458.0,0.50154648]
[1645191894567,0.05714896,40461.0,40458.0,0.50254648]
[1645191895168,0.05714896,40461.0,40458.0,0.50210688]
[1645191895372,0.45747356,40460.0,40458.0,0.50210688]
[1645191895647,0.45747356,40460.0,40458.0,0.00254646]
[1645191895648,0.3,40459.0,40458.0,0.00254646]
[1645191895843,0.123636,40456.0,40451.0,0.0094]
[1645191896039,0.123636,40456.0,40452.0,0.5]
[1645191896240,0.05,40455.0,40451.0,0.32105326]
[1645191896438,0.05034796,40455.0,40451.0,0.32105326]
[1645191897038,0.061811,40454.0,40451.0,0.32105326]
[1645191897238,0.06215896,40454.0,40451.0,0.32105326]
[1645191897640,0.06215896,40454.0,40451.0,0.0094]
[1645191899265,0.00034796,40454.0,40451.0,0.0094]
[1645191899470,0.05034796,40455.0,40451.0,0.0094]
[1645191899665,0.05,40455.0,40451.0,0.0094]
[1645191899865,0.00034796,40456.0,40451.0,0.0094]
[1645191900067,0.34905402,40457.0,40451.0,0.0094]
[1645191900266,0.00022624,40455.0,40451.0,0.0094]
[1645191900669,0.00446066,40453.0,40451.0,0.0094]
[1645191901066,0.00480862,40453.0,40451.0,0.0094]
[1645191902471,0.24795033,40453.0,40451.0,0.0094]
[1645191902670,0.24795033,40453.0,40451.0,0.061809]
[1645191902671,0.00480862,40453.0,40451.0,0.061809]
[1645191903517,0.00480862,40453.0,40449.0,8.713e-05]
[1645191903915,0.00480862,40453.0,40449.0,0.00016983]
[1645191904117,0.00480862,40453.0,40448.0,0.11378583]
[1645191904316,0.06662162,40453.0,40448.0,0.11378583]
[1645191904524,0.06662162,40453.0,40445.0,0.19666353]
[1645191904525,0.33807451,40450.0,40445.0,0.19666353]
[1645191904731,0.67117251,40450.0,40449.0,0.001]
[1645191904924,0.83807451,40450.0,40449.0,0.001]
[1645191905119,0.84777451,40450.0,40449.0,0.0010827]
[1645191905320,0.4748414,40450.0,40449.0,0.0010827]
[1645191905917,0.4748414,40450.0,40449.0,8.27e-05]
[1645191906774,0.4758414,40450.0,40449.0,8.27e-05]
[1645191906976,0.4758414,40450.0,40445.0,8.96e-05]
[1645191906977,0.061836,40449.0,40445.0,8.96e-05]
[1645191908075,0.06183787,40448.0,40445.0,8.96e-05]
[1645191908275,0.361838,40447.0,40445.0,8.96e-05]
[1645191908474,0.3,40446.0,40445.0,8.96e-05]
[1645191909075,0.3,40446.0,40445.0,0.15281625]
[1645191909278,1.661,40446.0,40445.0,0.3055429]
[1645191909479,1.2,40445.0,40431.0,0.19657393]
[1645191909680,1.7607,40444.0,40430.0,0.1236]
[1645191909879,2.1605,40444.0,40430.0,0.1236]
[1645191910085,2.0605,40444.0,40443.0,0.00484431]
[1645191910281,2.22334993,40444.0,40443.0,0.00484431]
[1645191910720,2.37334993,40444.0,40443.0,0.00484431]
[1645191911120,2.37334993,40444.0,40443.0,0.00474489]
[1645191911326,1.311,40442.0,40441.0,9.942e-05]
[1645191911622,1.70536597,40442.0,40441.0,9.942e-05]
[1645191911821,1.80536597,40442.0,40441.0,9.942e-05]
[1645191912023,1.5607,40442.0,40441.0,9.942e-05]
[1645191912224,0.0497,40442.0,40431.0,0.25875349]
[1645191912424,0.0497,40442.0,40436.0,0.061834]
[1645191912627,0.0497,40442.0,40439.0,0.00026516]
[1645191912628,0.061834,40441.0,40439.0,0.00026516]
[1645191912826,0.0497,40440.0,40439.0,0.00026516]
[1645191914023,0.0497,40440.0,40437.0,0.00026517]
[1645191914463,0.473668,40441.0,40437.0,0.00026517]
[1645191914665,0.001,40440.0,40437.0,0.00026517]
[1645191914865,0.001,40440.0,40433.0,0.061839]
[1645191915068,0.001,40440.0,40437.0,0.00025013]
[1645191915864,0.173668,40441.0,40437.0,0.00025013]
[1645191916064,0.173668,40441.0,40437.0,0.00222561]
[1645191916265,0.473668,40441.0,40437.0,0.00222561]
[1645191916465,0.173668,40441.0,40437.0,0.00222561]
[1645191916866,0.473668,40441.0,40437.0,0.00222561]
[1645191917066,1.784668,40441.0,40437.0,0.00222561]
[1645191917266,0.473668,40441.0,40437.0,0.00222561]
[1645191917466,0.473668,40441.0,40437.0,0.00247574]
[1645191917872,0.473668,40441.0,40432.0,0.061839]
[1645191917873,0.061839,40438.0,40432.0,0.061839]
[1645191918118,0.06184,40437.0,40429.0,0.44779064]
[1645191918317,0.11184,40437.0,40429.0,0.44779064]
[1645191918716,0.11184,40437.0,40436.0,0.28205622]
[1645191918717,0.06184,40437.0,40436.0,0.28205622]
[1645191919218,0.06184,40437.0,40436.0,0.27205622]
[1645191920427,0.06184,40437.0,40427.0,0.32995493]
[1645191920620,0.061847,40434.0,40431.0,0.001]
[1645191921425,0.23879988,40433.0,40431.0,0.001]
[1645191921868,0.23879988,40433.0,40427.0,0.0097]
[1645191922070,0.30064688,40433.0,40427.0,0.0097]
[1645191922468,0.30064688,40433.0,40430.0,0.00025012]
[1645191923268,0.23879988,40433.0,40430.0,0.00025012]
[1645191923469,0.0096,40435.0,40433.0,0.27286556]
[1645191923672,0.22815916,40440.0,40433.0,0.27286556]
[1645191924469,0.061835,40438.0,40433.0,0.27286556]
[1645191924667,0.28889505,40438.0,40433.0,0.27386556]
[1645191924869,0.28889505,40438.0,40435.0,0.061835]
[1645191925070,0.33889505,40438.0,40433.0,0.001]
[1645191925373,0.33889505,40438.0,40434.0,0.00148941]
[1645191926224,1.64989505,40438.0,40434.0,0.00148941]
[1645191926623,0.433397,40437.0,40434.0,0.00148941]
[1645191926823,0.061845,40436.0,40434.0,0.00148941]
[1645191927024,0.10784459,40436.0,40434.0,0.00148941]
[1645191927224,0.10784459,40436.0,40435.0,0.2928819]
[1645191927225,0.05784459,40436.0,40435.0,0.2928819]
[1645191927427,0.0097,40437.0,40435.0,0.2928819]
[1645191928025,0.061835,40438.0,40435.0,0.2928819]
[1645191928229,0.4432,40444.0,40435.0,0.2928819]
[1645191928430,0.05,40445.0,40436.0,0.0497]
[1645191928829,0.5,40449.0,40436.0,0.0497]
[1645191929025,0.0095,40449.0,40437.0,0.0091]
[1645191929270,0.0095,40449.0,40445.0,0.29831136]
[1645191929464,0.0095,40449.0,40438.0,0.0497]
[1645191929465,0.061823,40446.0,40438.0,0.0497]
[1645191929664,0.061827,40445.0,40438.0,0.0497]
[1645191929866,0.361827,40445.0,40438.0,0.0497]
[1645191930067,0.061827,40445.0,40438.0,0.0497]
[1645191930464,0.061827,40445.0,40438.0,0.39662105]
[1645191930666,0.18979705,40440.0,40438.0,0.39662105]
[1645191932470,0.18979705,40440.0,40438.0,0.0497]
[1645191933622,0.18979705,40440.0,40438.0,0.39424023]
[1645191934016,0.061828,40444.0,40438.0,0.39424023]
[1645191934220,0.111825,40447.0,40438.0,0.39424023]
[1645191935317,0.061824,40446.0,40438.0,0.39424023]
[1645191935918,0.00160434,40439.0,40438.0,0.45606123]
[1645191936761,0.00160434,40439.0,40438.0,0.45706123]
[1645191936964,0.061825,40447.0,40438.0,0.45706123]
[1645191936965,0.02740583,40447.0,40438.0,0.45706123]
[1645191937363,0.02740583,40447.0,40445.0,0.28914708]
[1645191937664,0.061824,40446.0,40445.0,0.28914708]
[1645191938464,0.061824,40446.0,40444.0,0.061822]
[1645191938966,0.061821,40449.0,40444.0,0.061822]
[1645191939164,0.061821,40449.0,40445.0,0.0497]
[1645191939365,0.05,40450.0,40445.0,0.0497]
[1645191939765,0.00046957,40451.0,40445.0,0.0497]
[1645191939964,0.00023479,40451.0,40445.0,0.0497]
[1645191940368,0.00023479,40451.0,40445.0,0.37885562]
[1645191940826,0.00046959,40451.0,40445.0,0.0507]
[1645191941127,0.0002348,40451.0,40443.0,0.07456742]
[1645191941333,0.0002348,40451.0,40446.0,0.00264461]
[1645191941924,0.00038563,40451.0,40446.0,0.00264461]
[1645191942324,0.00015083,40451.0,40446.0,0.00264461]
[1645191942525,0.06196983,40451.0,40446.0,0.00264461]
[1645191942926,0.06196983,40451.0,40446.0,0.00364461]
[1645191943327,0.06206117,40451.0,40446.0,0.00364461]
[1645191944125,0.06206117,40451.0,40446.0,0.00367519]
[1645191944367,0.2099158,40450.0,40446.0,0.00367519]
[1645191944568,0.2599158,40450.0,40446.0,0.00367519]
[1645191944766,0.06183,40449.0,40446.0,0.00367519]
[1645191944967,0.2717458,40449.0,40446.0,0.00367519]
[1645191945968,0.26941674,40448.0,40446.0,0.00367519]
[1645191946170,0.47933254,40448.0,40446.0,0.00338308]
[1645191946369,0.48913254,40448.0,40446.0,0.00338308]
[1645191946967,0.49013254,40448.0,40446.0,0.00338308]
[1645191948217,0.48913254,40448.0,40446.0,0.00338308]
[1645191949015,0.48913254,40448.0,40446.0,0.00438308]
[1645191949417,0.48927994,40448.0,40446.0,0.00438308]
[1645191950022,0.48692744,40448.0,40446.0,0.00203058]
[1645191950219,0.27686424,40448.0,40446.0,0.00103058]
[1645191950920,0.27686424,40448.0,40446.0,0.00203058]
[1645191951118,0.27686424,40448.0,40447.0,0.00274769]
[1645191951320,0.27686424,40448.0,40447.0,0.00377827]
[1645191951521,0.48692744,40448.0,40447.0,0.00377827]
[1645191951774,0.27686424,40448.0,40447.0,0.00377827]
[1645191952165,0.48692744,40448.0,40447.0,0.00377827]
[1645191952370,1.97096224,40448.0,40447.0,0.00377827]
[1645191952566,1.97096224,40448.0,40436.0,0.11397529]
[1645191952567,0.00077967,40445.0,40436.0,0.11397529]
[1645191952765,0.20999801,40443.0,40436.0,0.11397529]
[1645191953165,0.43570429,40443.0,40436.0,0.11397529]
[1645191953568,0.20999801,40444.0,40437.0,0.3]
[1645191953766,0.00077967,40445.0,40437.0,0.061834]
[1645191954568,7.597e-05,40443.0,40437.0,0.2723611]
[1645191954769,7.597e-05,40443.0,40437.0,0.071734]
[1645191954968,7.597e-05,40443.0,40437.0,0.072734]
[1645191956222,7.597e-05,40443.0,40440.0,0.00222461]
[1645191959026,7.597e-05,40443.0,40440.0,0.00322461]
[1645191959465,7.597e-05,40443.0,40440.0,0.26086472]
[1645191959673,0.00077967,40445.0,40440.0,0.26086472]
[1645191959674,0.00085564,40445.0,40440.0,0.26086472]
[1645191959868,0.00085564,40445.0,40440.0,0.46086472]
[1645191960066,0.00085564,40445.0,40440.0,0.26086472]
[1645191960265,0.00085564,40445.0,40441.0,0.2]
[1645191960465,0.00085564,40445.0,40441.0,0.2497]
[1645191960665,0.00085564,40445.0,40443.0,0.26338947]
[1645191960870,0.00085564,40445.0,40443.0,0.061819]
[1645191961067,0.00085564,40445.0,40443.0,0.111819]
[1645191961268,0.00085564,40445.0,40443.0,0.061819]
[1645191961667,0.00085564,40445.0,40443.0,0.111819]
[1645191961868,0.00085564,40445.0,40443.0,0.061819]
[1645191962868,0.00085564,40445.0,40443.0,0.062819]
[1645191963532,0.00085564,40445.0,40443.0,0.001]
[1645191964031,0.21085365,40445.0,40443.0,0.001]
[1645191964223,0.21085365,40445.0,40439.0,0.00148941]
[1645191964828,0.00085564,40445.0,40439.0,0.00148941]
[1645191965022,0.00085564,40445.0,40439.0,0.00248941]
[1645191965224,0.21085365,40445.0,40439.0,0.00248941]
[1645191965423,0.26345936,40442.0,40439.0,0.00248941]
[1645191966225,0.26345936,40442.0,40439.0,0.00148941]
[1645191966979,0.26345936,40442.0,40438.0,0.00178971]
[1645191967578,0.26345936,40442.0,40436.0,0.43213922]
[1645191967978,0.26345936,40442.0,40437.0,0.061835]
[1645191968680,0.21467412,40444.0,40437.0,0.061835]
[1645191968881,0.00467611,40444.0,40443.0,0.25766119]
[1645191970284,0.00467611,40444.0,40441.0,0.061827]
[1645191970717,0.00467611,40444.0,40440.0,0.0099]
[1645191971121,0.00134241,40442.0,40440.0,0.01223334]
[1645191971318,0.00134241,40442.0,40440.0,0.27655852]
[1645191972122,0.00134241,40442.0,40440.0,0.38838352]
[1645191972329,0.00077967,40445.0,40441.0,0.4497]
[1645191972629,0.00077967,40445.0,40444.0,0.2]
[1645191972820,0.00077967,40445.0,40444.0,0.51024655]
[1645191973019,0.00077967,40445.0,40444.0,0.31024655]
[1645191973222,0.00077967,40445.0,40444.0,0.75275549]
[1645191973421,0.00077967,40445.0,40444.0,0.96456949]
[1645191973620,0.00077967,40445.0,40444.0,1.06456949]
[1645191973821,0.00077967,40445.0,40444.0,1.26119345]
[1645191974022,0.00077967,40445.0,40444.0,1.0506469]
[1645191974669,0.00084614,40445.0,40444.0,1.3506469]
[1645191975068,0.00084614,40445.0,40444.0,1.2006469]
[1645191975273,0.00084614,40445.0,40444.0,1.3506469]
[1645191975669,0.00084614,40445.0,40444.0,1.2006469]
[1645191975868,0.00084614,40445.0,40444.0,1.1006469]
[1645191976070,0.00286162,40445.0,40444.0,1.31115151]
[1645191976271,0.00286162,40445.0,40444.0,0.9006469]
[1645191976669,0.37703013,40450.0,40449.0,0.29685807]
[1645191976872,0.17703013,40450.0,40449.0,0.29685807]
[1645191977070,0.18726504,40452.0,40449.0,0.29685807]
[1645191977370,0.25011052,40454.0,40449.0,0.29685807]
[1645191977569,0.05011052,40454.0,40449.0,0.29685807]
[1645191977769,0.11604229,40456.0,40450.0,0.061816]
[1645191978030,0.5114035,40458.0,40450.0,0.061816]
[1645191978219,0.38555987,40458.0,40450.0,0.061816]
[1645191978619,0.19485987,40459.0,40450.0,0.061816]
[1645191978819,0.24909979,40459.0,40457.0,0.30861813]
[1645191979018,0.24909979,40459.0,40457.0,0.10221284]
[1645191979219,0.04909979,40459.0,40457.0,0.10221284]
[1645191979419,0.24746847,40460.0,40457.0,0.10221284]
[1645191979619,0.24066847,40460.0,40450.0,0.062816]
[1645191979819,0.07415097,40459.0,40450.0,0.062816]
[1645191980217,0.07415097,40459.0,40450.0,0.061816]
[1645191980819,0.07415097,40459.0,40450.0,0.06401666]
[1645191981018,0.08325097,40459.0,40451.0,0.00449442]
[1645191981621,0.08325097,40459.0,40452.0,0.30284737]
[1645191981872,0.00026528,40457.0,40452.0,0.30284737]
[1645191982471,0.00026528,40457.0,40451.0,0.00475974]
[1645191982874,0.08325097,40459.0,40451.0,0.00449442]
[1645191983071,0.00026528,40457.0,40451.0,0.00475974]
[1645191984072,0.08325097,40459.0,40451.0,0.00449442]
[1645191984273,0.00026528,40457.0,40451.0,0.00475974]
[1645191985174,0.12854858,40459.0,40451.0,0.00475974]
[1645191985374,0.00025026,40457.0,40451.0,0.00501004]
[1645191985626,0.00025026,40457.0,40451.0,0.00474472]
[1645191986028,0.315288,40457.0,40454.0,0.00234232]
[1645191986425,0.50250137,40457.0,40454.0,0.00234232]
[1645191986627,0.26253975,40457.0,40454.0,0.00234232]
[1645191986827,0.24253975,40455.0,40454.0,0.00234232]
[1645191987428,0.04253975,40455.0,40454.0,0.00234232]
[1645191987628,0.15757749,40457.0,40454.0,0.00234232]
[1645191987930,0.12406749,40460.0,40454.0,0.00234232]
[1645191988127,0.40724565,40461.0,40454.0,0.00234232]
[1645191988335,0.05,40460.0,40454.0,0.00234232]
[1645191988528,0.2675301,40461.0,40454.0,0.00234232]
[1645191988731,0.1973601,40461.0,40454.0,0.00234232]
[1645191988929,0.1973601,40461.0,40455.0,0.0497]
[1645191989569,0.07414917,40459.0,40455.0,0.0497]
[1645191989768,0.07414917,40459.0,40456.0,0.22037051]
[1645191990770,0.07414917,40459.0,40457.0,0.26693989]
[1645191992170,0.07414917,40459.0,40456.0,0.22037051]
[1645191993824,0.07414917,40459.0,40456.0,0.27037051]
[1645191994223,0.07414917,40459.0,40454.0,0.00025267]
[1645191994924,0.23276172,40458.0,40448.0,0.30974567]
[1645191995227,0.23276172,40458.0,40454.0,0.00025266]
[1645191995424,0.20407277,40457.0,40454.0,0.00025266]
[1645191996233,1.62615093,40456.0,40448.0,0.12398967]
[1645191996429,1.62615093,40455.0,40451.0,0.00025267]
[1645191996627,0.31515093,40454.0,40451.0,0.00025267]
[1645191996876,1.5736277,40452.0,40451.0,0.00025267]
[1645191997073,1.311,40452.0,40451.0,0.00025267]
[1645191997274,0.31515093,40453.0,40451.0,0.00025267]
[1645191997674,0.26262578,40452.0,40451.0,0.00025267]
[1645191997873,0.26262578,40452.0,40450.0,0.0002434]
[1645191998273,0.26262578,40452.0,40450.0,0.0620674]
[1645191998674,0.26262578,40452.0,40450.0,0.061824]
[1645191998880,0.26262578,40453.0,40450.0,0.061824]
[1645191999477,0.26262578,40453.0,40449.0,0.0002434]
[1645191999677,0.26262578,40452.0,40449.0,0.0002434]
[1645191999878,0.26262578,40452.0,40448.0,0.06217167]
[1645192000077,0.26262578,40452.0,40449.0,0.0002434]
[1645192000725,0.26362578,40452.0,40449.0,0.0002434]
[1645192001126,0.26362578,40452.0,40449.0,0.0012434]
[1645192001530,0.26362578,40452.0,40449.0,0.00168718]
[1645192001928,0.26262578,40452.0,40449.0,0.00068718]
[1645192002128,0.26262578,40451.0,40449.0,0.00068718]
[1645192002430,0.26592711,40450.0,40449.0,0.00068718]
[1645192002628,0.26592711,40450.0,40449.0,0.00045483]
[1645192002828,0.26592711,40450.0,40449.0,0.00060978]
[1645192003029,0.52855289,40450.0,40449.0,0.00060978]
[1645192004769,0.26592711,40450.0,40449.0,0.00060978]
[1645192004972,0.26262578,40450.0,40449.0,0.001]
[1645192005170,1.87362578,40451.0,40449.0,0.001]
[1645192005371,1.311,40450.0,40449.0,0.001]
[1645192005976,1.744098,40450.0,40449.0,0.001]
[1645192006171,2.35595296,40450.0,40449.0,0.001]
[1645192006372,2.48253512,40450.0,40436.0,0.11397529]
[1645192006578,1.311,40441.0,40436.0,0.11397529]
[1645192006973,1.311,40441.0,40436.0,0.17582529]
[1645192006974,1.5209982,40441.0,40436.0,0.17582529]
[1645192007374,1.311,40441.0,40437.0,0.20655694]
[1645192007674,1.311,40441.0,40437.0,0.25655694]
[1645192007873,1.311,40441.0,40437.0,0.05]
[1645192008133,1.311,40439.0,40436.0,0.16397529]
[1645192008331,1.311,40437.0,40436.0,0.16397529]
[1645192008530,0.2099982,40439.0,40436.0,0.16397529]
[1645192008730,1.77801292,40439.0,40436.0,0.16397529]
[1645192009134,1.56801472,40439.0,40436.0,0.16497529]
[1645192009329,1.77801292,40439.0,40436.0,0.16497529]
[1645192009731,1.56801472,40439.0,40436.0,0.16497529]
[1645192010135,1.311,40437.0,40436.0,0.16497529]
[1645192010331,1.311,40437.0,40436.0,0.16397529]
[1645192010531,1.644098,40437.0,40436.0,0.16397529]
[1645192012770,0.333098,40437.0,40436.0,0.16397529]
[1645192012973,0.002,40437.0,40436.0,0.16397529]
[1645192014877,1.71835305,40442.0,40436.0,0.16397529]
[1645192015077,0.001,40437.0,40436.0,0.16397529]
[1645192015376,1.312,40437.0,40436.0,0.16397529]
[1645192015832,0.26095861,40437.0,40436.0,0.16397529]
[1645192016033,0.001,40437.0,40436.0,0.1680997]
[1645192016431,0.00139995,40438.0,40436.0,0.1680997]
[1645192017134,0.00339995,40438.0,40436.0,0.51353454]
[1645192017334,0.00339995,40438.0,40436.0,0.1180997]
[1645192018335,0.00139995,40438.0,40436.0,0.1180997]
[1645192018938,1.411,40437.0,40436.0,0.1180997]
[1645192019137,1.411,40437.0,40425.0,0.123727]
[1645192019138,1.311,40435.0,40425.0,0.123727]
[1645192019382,1.311,40433.0,40424.0,0.00333]
[1645192019576,1.311,40431.0,40424.0,0.00333]
[1645192019775,0.0497,40432.0,40424.0,0.00333]
[1645192019776,1.311,40428.0,40424.0,0.00333]
[1645192019975,0.0497,40429.0,40424.0,0.00333]
[1645192020378,0.0497,40429.0,40424.0,0.127035]
[1645192020975,0.0497,40429.0,40428.0,0.29567854]
[1645192021382,0.0497,40429.0,40428.0,0.34567854]
[1645192022579,0.0497,40429.0,40428.0,0.55203046]
[1645192023030,0.0497,40429.0,40428.0,0.55303046]
[1645192024425,0.07419766,40433.0,40429.0,0.061852]
[1645192024632,0.07419766,40433.0,40430.0,0.061846]
[1645192024826,0.07419766,40433.0,40430.0,0.123694]
[1645192025027,0.07419766,40433.0,40430.0,0.173694]
[1645192025625,0.07419766,40433.0,40430.0,0.23553986]
[1645192025827,0.07419766,40433.0,40430.0,0.28588677]
[1645192026026,0.07419766,40433.0,40430.0,0.17404077]
[1645192026228,0.07419766,40433.0,40430.0,0.00034691]
[1645192026427,0.07419766,40433.0,40430.0,0.05034691]
[1645192027182,0.07419766,40433.0,40430.0,0.05134691]
[1645192027577,0.07419766,40433.0,40430.0,0.11319591]
[1645192027780,0.07419766,40433.0,40430.0,0.05134691]
[1645192028579,0.07419766,40433.0,40430.0,0.05034691]
[1645192029182,0.07419766,40433.0,40430.0,0.05134691]
[1645192030383,0.07419766,40433.0,40430.0,0.05034691]
[1645192030824,0.07419766,40433.0,40431.0,0.00221911]
[1645192030825,0.07594197,40433.0,40431.0,0.00221911]
[1645192031126,0.07594197,40433.0,40432.0,0.00226648]
[1645192031323,0.14594197,40433.0,40432.0,0.00226648]
[1645192032523,0.14594197,40433.0,40432.0,0.00220104]
[1645192033124,0.14694197,40433.0,40432.0,0.00220104]
[1645192034471,0.14594197,40433.0,40432.0,0.00220104]
[1645192034877,0.14594197,40433.0,40429.0,0.35044593]
[1645192035071,0.14594197,40433.0,40432.0,0.001]
[1645192035072,0.07594197,40433.0,40432.0,0.001]
[1645192035273,0.14594197,40433.0,40432.0,0.001]
[1645192036072,0.14594197,40433.0,40432.0,0.00326648]
[1645192036472,0.14594197,40433.0,40432.0,0.00226648]
[1645192036673,0.07594197,40433.0,40432.0,0.30226648]
[1645192036880,0.07594197,40433.0,40432.0,0.35196648]
[1645192037080,0.0088,40442.0,40432.0,0.35196648]
[1645192037081,0.0088,40442.0,40434.0,0.123655]
[1645192037277,0.0088,40442.0,40436.0,0.32443582]
[1645192037476,0.20983481,40449.0,40445.0,0.25360912]
[1645192037674,0.20983481,40449.0,40447.0,0.1991198]
[1645192037675,0.28400331,40449.0,40447.0,0.1991198]
[1645192037875,0.28400331,40449.0,40447.0,0.20542522]
[1645192038324,0.20966719,40448.0,40447.0,0.20542522]
[1645192038627,0.0741685,40449.0,40447.0,0.20542522]
[1645192039828,0.0273685,40449.0,40447.0,0.20542522]
[1645192040032,1.3383685,40449.0,40445.0,0.061827]
[1645192040230,1.3383685,40449.0,40444.0,0.123653]
[1645192040231,1.311,40447.0,40444.0,0.123653]
[1645192040426,0.26229351,40448.0,40444.0,0.123653]
[1645192040828,0.26229351,40447.0,40444.0,0.123653]
[1645192041028,0.5202924,40448.0,40444.0,0.123653]
[1645192041429,0.26229351,40447.0,40444.0,0.123653]
[1645192041875,0.26229351,40447.0,40444.0,0.173653]
[1645192042475,0.24714521,40447.0,40444.0,0.173653]
[1645192042876,1.3383685,40449.0,40444.0,0.173653]
[1645192043075,1.3383685,40449.0,40444.0,0.174653]
[1645192043277,1.3383685,40449.0,40444.0,0.051]
[1645192043677,0.24045567,40447.0,40444.0,0.051]
[1645192044077,1.55145567,40447.0,40444.0,0.051]
[1645192044276,1.55145567,40447.0,40439.0,0.05]
[1645192044277,1.65145567,40447.0,40439.0,0.05]
[1645192044477,1.55145567,40447.0,40440.0,0.061841]
[1645192044878,0.26190357,40445.0,40440.0,0.061841]
[1645192045077,0.24045567,40447.0,40440.0,0.062841]
[1645192045925,1.55145567,40447.0,40446.0,0.00185637]
[1645192046124,1.83296295,40447.0,40446.0,0.00185637]
[1645192046925,2.14771517,40447.0,40446.0,0.00185637]
[1645192048827,1.83296295,40447.0,40446.0,0.00185637]
[1645192049673,2.20017387,40447.0,40446.0,0.00185637]
[1645192050379,2.30017387,40447.0,40446.0,0.00185637]
[1645192050576,1.311,40445.0,40438.0,0.1195]
[1645192050874,1.311,40445.0,40431.0,0.423702]
[1645192050875,0.20996146,40440.0,40433.0,0.00023688]
[1645192051077,1.311,40443.0,40433.0,0.00023688]
[1645192051078,0.20996146,40439.0,40433.0,0.00023688]